fUSD/lending_fUSD_20260614
["ID","MTS","AMOUNT","RATE_DAILY","PERIOD"]
[424993905,1781388632000,-152.0,0.00016205,2]
[424993909,1781388632000,-151.0,0.00016205,2]
[424993907,1781388632000,-151.0,0.00016205,2]
[424993908,1781388632000,-152.0,0.00016205,2]
[424993906,1781388632000,-153.0,0.00016205,2]
[424993911,1781388632000,-500.0,0.00016829,2]
[424993910,1781388632000,-500.0,0.00016829,2]
[424993912,1781388632000,-500.0,0.00016829,2]
[424993913,1781388632000,-500.0,0.00016829,2]
[424993915,1781388632000,-22.69644593,0.0001683,2]
[424993914,1781388632000,-529.11777971,0.00016829,2]
[424993917,1781388632000,-2500.0,0.0001683,2]
[424993916,1781388632000,-2477.30355407,0.0001683,2]
[424993918,1781388632000,-1226.46701951,0.0001683,2]
[424993922,1781388638000,-1063.65325196,0.0001683,2]
[424993924,1781388638000,-1440.19480578,0.0001683,2]
[424993925,1781388638000,-1059.80519422,0.0001683,2]
[424993926,1781388638000,-402.28596878,0.0001683,2]
[424993927,1781388638000,-549.74674804,0.0001683,2]
[424993928,1781388638000,-500.0,0.0001683,2]
[424993923,1781388638000,-209.87972853,0.0001683,2]
[424994183,1781388646000,-556.40469,0.0001683,2]
[424994182,1781388646000,-151.0,0.00016205,2]
[424994206,1781388647000,-152.0,0.00018,2]
[424994208,1781388647000,-150.0,0.00018,2]
[424994211,1781388647000,-152.0,0.00018,2]
[424994212,1781388647000,-151.0,0.00018,2]
[424994210,1781388647000,-151.0,0.00018,2]
[424994213,1781388647000,-151.0,0.00018,2]
[424994209,1781388647000,-151.0,0.00018,2]
[424994218,1781388647000,-300.0,0.000185,30]
[424994217,1781388647000,-750.0,0.000185,2]
[424994219,1781388647000,-179.0,0.0002,2]
[424994215,1781388647000,-151.0,0.00018,2]
[424994216,1781388647000,-151.0,0.00018,2]
[424994222,1781388647000,-179.0,0.00021,2]
[424994207,1781388647000,-150.0,0.00018,2]
[424994214,1781388647000,-151.0,0.00018,2]
[424994205,1781388647000,-152.0,0.00018,2]
[424994192,1781388647000,-200.11579896,0.00017108,2]
[424994203,1781388647000,-516.0,0.00018,2]
[424994188,1781388647000,-491.56259318,0.0001683,2]
[424994190,1781388647000,-334.0407658,0.0001694,2]
[424994189,1781388647000,-66.38340682,0.0001694,2]
[424994191,1781388647000,-199.57582738,0.0001694,2]
[424994220,1781388647000,-150.18093247,0.0002,20]
[424994193,1781388647000,-151.0,0.00017551,2]
[424994198,1781388647000,-151.0,0.00017999,2]
[424994195,1781388647000,-151.0,0.00017551,2]
[424994196,1781388647000,-151.0,0.00017551,2]
[424994197,1781388647000,-732.6099754,0.000177,2]
[424994194,1781388647000,-151.0,0.00017551,2]
[424994201,1781388647000,-152.0,0.00017999,2]
[424994200,1781388647000,-151.0,0.00017999,2]
[424994199,1781388647000,-150.0,0.00017999,2]
[424994202,1781388647000,-151.0,0.00017999,2]
[424994204,1781388647000,-150.0,0.00018,2]
[424994223,1781388647000,-1695.6908021,0.00021611,2]
[424994221,1781388647000,-516.0,0.00020138,4]
[424994257,1781388647000,-376.97039244,0.00024434,14]
[424994243,1781388647000,-376.97039244,0.00022936,7]
[424994248,1781388647000,-376.97039244,0.00023498,7]
[424994246,1781388647000,-376.97039244,0.00023123,7]
[424994249,1781388647000,-376.97039244,0.00023685,14]
[424994252,1781388647000,-376.97039244,0.00024059,14]
[424994253,1781388647000,-150.0,0.00024164,2]
[424994250,1781388647000,-376.97039244,0.00023872,14]
[424994251,1781388647000,-179.0,0.00024,2]
[424994254,1781388647000,-376.97039244,0.00024246,14]
[424994225,1781388647000,-376.97039244,0.00022,2]
[424994258,1781388647000,-964.0,0.0002456,10]
[424994255,1781388647000,-151.0,0.00024324,2]
[424994256,1781388647000,-516.0,0.00024414,8]
[424994259,1781388647000,-376.97039244,0.00024621,14]
[424994260,1781388647000,-166.66,0.00024802,30]
[424994245,1781388647000,-150.0,0.00023014,2]
[424994244,1781388647000,-179.0,0.00023,2]
[424994247,1781388647000,-376.97039244,0.0002331,7]
[424994239,1781388647000,-516.0,0.00022276,6]
[424994224,1781388647000,-150.0,0.00021918,2]
[424994228,1781388647000,-151.0,0.00022175,2]
[424994229,1781388647000,-151.0,0.00022175,2]
[424994242,1781388647000,-376.97039244,0.00022749,7]
[424994230,1781388647000,-151.0,0.00022175,2]
[424994227,1781388647000,-151.0,0.00022175,2]
[424994232,1781388647000,-151.0,0.00022175,2]
[424994231,1781388647000,-151.0,0.00022175,2]
[424994226,1781388647000,-179.0,0.00022,2]
[424994233,1781388647000,-151.0,0.00022175,2]
[424994237,1781388647000,-151.0,0.00022175,2]
[424994241,1781388647000,-376.97039244,0.00022562,7]
[424994236,1781388647000,-151.0,0.00022175,2]
[424994235,1781388647000,-151.0,0.00022175,2]
[424994238,1781388647000,-376.97039244,0.00022187,2]
[424994240,1781388647000,-376.97039244,0.00022374,2]
[424994234,1781388647000,-151.0,0.00022175,2]
[424994298,1781388648000,-300.0,0.00026641,7]
[424994300,1781388648000,-376.97039244,0.0002668,60]
[424994299,1781388648000,-150.0,0.00026641,2]
[424994293,1781388648000,-151.0,0.00026296,2]
[424994294,1781388648000,-376.97039244,0.00026306,60]
[424994295,1781388648000,-166.66,0.00026369,30]
[424994291,1781388648000,-274.6068833,0.00026212,14]
[424994296,1781388648000,-376.97039244,0.00026493,60]
[424994297,1781388648000,-274.6068833,0.00026516,30]
[424994301,1781388648000,-217.95581361,0.0002669,2]
[424994292,1781388648000,-4028.23,0.00026251,7]
[424994303,1781388648000,-14164.97651124,0.00026781,7]
[424994290,1781388648000,-5000.0,0.0002618,2]
[424994302,1781388648000,-76554.81942314,0.00026781,7]
[424994307,1781388648000,-166.66,0.00026891,30]
[424994305,1781388648000,-274.6068833,0.0002682,60]
[424994306,1781388648000,-376.97039244,0.00026867,60]
[424994308,1781388648000,-376.97039244,0.00027054,120]
[424994309,1781388648000,-217.95581361,0.00027061,2]
[424994312,1781388648000,-181.62744945,0.00027106,7]
[424994310,1781388648000,-27749.1426,0.00027103,2]
[424994311,1781388648000,-151.83827452,0.00027106,7]
[424994314,1781388648000,-162.16790163,0.00027106,7]
[424994319,1781388648000,-1500.0,0.00027397,2]
[424994304,1781388648000,-223.24,0.0002679,2]
[424994289,1781388648000,-500.0,0.00026156,2]
[424994313,1781388648000,-203.49330281,0.00027106,7]
[424994288,1781388648000,-376.97039244,0.00026118,60]
[424994261,1781388648000,-376.97039244,0.00024808,30]
[424994262,1781388648000,-376.97039244,0.00024995,30]
[424994263,1781388648000,-188.0,0.00025,2]
[424994265,1781388648000,-274.6068833,0.00025299,2]
[424994264,1781388648000,-376.97039244,0.00025182,30]
[424994267,1781388648000,-376.97039244,0.0002537,30]
[424994266,1781388648000,-166.66,0.00025324,30]
[424994268,1781388648000,-150.0,0.00025373,2]
[424994269,1781388648000,-912.1935,0.00025472,2]
[424994275,1781388648000,-3557.0,0.00025571,2]
[424994273,1781388648000,-1228.0,0.00025566,2]
[424994270,1781388648000,-200.0,0.00025499,2]
[424994274,1781388648000,-1359.0,0.00025571,2]
[424994272,1781388648000,-376.97039244,0.00025557,30]
[424994276,1781388648000,-1275.0,0.00025571,2]
[424994277,1781388648000,-383.0,0.00025571,2]
[424994279,1781388648000,-3644.0,0.00025692,2]
[424994278,1781388648000,-274.6068833,0.00025603,7]
[424994280,1781388648000,-6076.0,0.00025692,2]
[424994282,1781388648000,-419.0,0.00025835,2]
[424994283,1781388648000,-166.66,0.00025846,30]
[424994284,1781388648000,-274.6068833,0.00025907,7]
[424994281,1781388648000,-376.97039244,0.00025744,30]
[424994286,1781388648000,-385.16761744,0.00025956,2]
[424994285,1781388648000,-376.97039244,0.00025931,60]
[424994287,1781388648000,-1695.6908021,0.00026066,2]
[424994317,1781388648000,-157.56,0.00027387,2]
[424994271,1781388648000,-1000.0,0.00025546,2]
[424994315,1781388648000,-274.6068833,0.00027125,60]
[424994357,1781388648000,-212.33,0.00027856,7]
[424994352,1781388648000,-207.4,0.00027795,30]
[424994349,1781388648000,-207.4,0.00027765,7]
[424994351,1781388648000,-212.33,0.00027795,30]
[424994355,1781388648000,-207.4,0.00027826,2]
[424994354,1781388648000,-212.33,0.00027826,2]
[424994353,1781388648000,-217.95581361,0.00027803,2]
[424994350,1781388648000,-7439.191,0.00027787,2]
[424994356,1781388648000,-1576.4029046,0.00027835,2]
[424994358,1781388648000,-207.4,0.00027856,7]
[424994359,1781388648000,-1027.92,0.00027872,2]
[424994372,1781388648000,-212.33,0.00027978,30]
[424994360,1781388648000,-1020.68,0.00027872,2]
[424994362,1781388648000,-1170.57,0.00027887,2]
[424994363,1781388648000,-212.33,0.00027887,30]
[424994364,1781388648000,-207.4,0.00027887,30]
[424994361,1781388648000,-987.39,0.00027878,2]
[424994365,1781388648000,-4493.869,0.00027891,18]
[424994367,1781388648000,-212.33,0.00027917,2]
[424994368,1781388648000,-207.4,0.00027917,2]
[424994366,1781388648000,-250.184,0.00027891,18]
[424994370,1781388648000,-207.4,0.00027947,7]
[424994369,1781388648000,-212.33,0.00027947,7]
[424994371,1781388648000,-150.0,0.00027973,2]
[424994373,1781388648000,-207.4,0.00027978,30]
[424994348,1781388648000,-212.33,0.00027765,7]
[424994347,1781388648000,-207.4,0.00027735,2]
[424994318,1781388648000,-339.91362161,0.00027397,2]
[424994345,1781388648000,-1170.57,0.00027728,7]
[424994320,1781388648000,-300.0,0.00027397,2]
[424994316,1781388648000,-376.97039244,0.00027242,120]
[424994321,1781388648000,-166.66,0.00027413,30]
[424994323,1781388648000,-376.97039244,0.00027429,120]
[424994322,1781388648000,-274.6068833,0.00027429,120]
[424994325,1781388648000,-500.0,0.000275,7]
[424994328,1781388648000,-212.33,0.00027553,2]
[424994346,1781388648000,-212.33,0.00027735,2]
[424994324,1781388648000,-217.95581361,0.00027432,2]
[424994331,1781388648000,-1170.57,0.00027569,30]
[424994326,1781388648000,-1027.92,0.0002755,30]
[424994329,1781388648000,-207.4,0.00027553,2]
[424994330,1781388648000,-987.39,0.00027558,30]
[424994327,1781388648000,-1020.68,0.0002755,30]
[424994333,1781388648000,-207.4,0.00027583,7]
[424994332,1781388648000,-212.33,0.00027583,7]
[424994343,1781388648000,-1020.68,0.00027711,7]
[424994341,1781388648000,-207.4,0.00027704,30]
[424994342,1781388648000,-1027.92,0.00027711,7]
[424994339,1781388648000,-207.4,0.00027674,7]
[424994338,1781388648000,-212.33,0.00027674,7]
[424994340,1781388648000,-212.33,0.00027704,30]
[424994337,1781388648000,-207.4,0.00027644,2]
[424994334,1781388648000,-212.33,0.00027613,30]
[424994335,1781388648000,-207.4,0.00027613,30]
[424994336,1781388648000,-212.33,0.00027644,2]
[424994344,1781388648000,-987.39,0.00027718,7]
[424994408,1781388649000,-2038.51222296,0.000284,2]
[424994413,1781388649000,-987.39,0.00028519,30]
[424994412,1781388649000,-3701.94987392,0.000284,2]
[424994411,1781388649000,-2038.51222295,0.000284,2]
[424994407,1781388649000,-152.96413112,0.000284,2]
[424994402,1781388649000,-406.98660562,0.0002839,7]
[424994409,1781388649000,-2038.51222295,0.000284,2]
[424994405,1781388649000,-152.96413112,0.000284,2]
[424994406,1781388649000,-152.96413112,0.000284,2]
[424994404,1781388649000,-158.0,0.000284,5]
[424994410,1781388649000,-3701.94987395,0.000284,2]
[424994414,1781388649000,-1170.57,0.00028523,30]
[424994427,1781388649000,-1170.57,0.00028841,2]
[424994415,1781388649000,-217.95581361,0.00028546,2]
[424994417,1781388649000,-1359.0,0.00028571,2]
[424994419,1781388649000,-1275.0,0.00028571,2]
[424994418,1781388649000,-3557.0,0.00028571,2]
[424994420,1781388649000,-383.0,0.00028571,2]
[424994422,1781388649000,-1170.57,0.00028682,7]
[424994421,1781388649000,-987.39,0.00028679,7]
[424994424,1781388649000,-6076.0,0.00028692,2]
[424994425,1781388649000,-419.0,0.00028835,2]
[424994423,1781388649000,-3644.0,0.00028692,2]
[424994426,1781388649000,-987.39,0.00028839,2]
[424994403,1781388649000,-324.33580325,0.0002839,7]
[424994416,1781388649000,-1228.0,0.00028566,2]
[424994399,1781388649000,-363.2548989,0.0002839,7]
[424994389,1781388649000,-1027.92,0.00028194,7]
[424994401,1781388649000,-237.96937963,0.0002839,2]
[424994428,1781388649000,-217.95581361,0.00028917,2]
[424994375,1781388649000,-207.4,0.00028008,2]
[424994374,1781388649000,-212.33,0.00028008,2]
[424994376,1781388649000,-1027.92,0.00028033,30]
[424994379,1781388649000,-212.33,0.00028038,7]
[424994378,1781388649000,-987.39,0.00028038,30]
[424994377,1781388649000,-1020.68,0.00028033,30]
[424994381,1781388649000,-1170.57,0.00028046,30]
[424994382,1781388649000,-212.33,0.00028069,30]
[424994380,1781388649000,-207.4,0.00028038,7]
[424994384,1781388649000,-212.33,0.00028099,2]
[424994385,1781388649000,-207.4,0.00028099,2]
[424994386,1781388649000,-212.36,0.0002813,7]
[424994388,1781388649000,-217.95581361,0.00028174,2]
[424994387,1781388649000,-207.44,0.0002813,7]
[424994383,1781388649000,-207.4,0.00028069,30]
[424994390,1781388649000,-1020.68,0.00028194,7]
[424994391,1781388649000,-987.39,0.00028198,7]
[424994393,1781388649000,-1431.9,0.00028215,7]
[424994392,1781388649000,-1170.57,0.00028205,7]
[424994395,1781388649000,-500.0,0.00028356,60]
[424994396,1781388649000,-987.39,0.00028359,2]
[424994397,1781388649000,-1170.57,0.00028364,2]
[424994394,1781388649000,-151.0,0.00028267,2]
[424994398,1781388649000,-303.67654904,0.0002839,7]
[424994400,1781388649000,-237.77891543,0.0002839,7]
[424994430,1781388649000,-1170.63,0.00029,30]
[424994433,1781388649000,-500.0,0.00029,5]
[424994429,1781388649000,-987.48,0.00029,30]
[424994461,1781388649000,-217.95581361,0.00029659,2]
[424994463,1781388649000,-200.0,0.0002976,2]
[424994464,1781388649000,-315.1716101,0.00029815,2]
[424994465,1781388649000,-607.35309808,0.00029816,7]
[424994467,1781388649000,-713.33674628,0.00029816,7]
[424994462,1781388649000,-2700.0,0.00029666,7]
[424994466,1781388649000,-726.50979779,0.00029816,7]
[424994470,1781388649000,-648.6716065,0.00029816,7]
[424994468,1781388649000,-713.9081389,0.00029816,2]
[424994471,1781388649000,-263.46103433,0.00029816,7]
[424994473,1781388649000,-1212.7,0.00029818,7]
[424994459,1781388649000,-2700.0,0.00029315,2]
[424994472,1781388649000,-357.59331301,0.00029816,7]
[424994474,1781388649000,-1113.35,0.00029818,7]
[424994476,1781388649000,-3561.6725758,0.00029846,2]
[424994480,1781388649000,-1790.52438237,0.00029929,2]
[424994478,1781388649000,-1790.52438245,0.000299,2]
[424994477,1781388649000,-208.27277261,0.000299,2]
[424994482,1781388649000,-293.11,0.0002999,2]
[424994479,1781388649000,-1790.52438237,0.00029914,2]
[424994481,1781388649000,-293.11,0.0002999,2]
[424994484,1781388649000,-293.11,0.0002999,2]
[424994483,1781388649000,-293.11,0.0002999,2]
[424994485,1781388649000,-300.0,0.00029999,10]
[424994475,1781388649000,-704.63,0.00029818,7]
[424994460,1781388649000,-150.0,0.00029372,2]
[424994469,1781388649000,-813.97321123,0.00029816,7]
[424994457,1781388649000,-486.50370488,0.00029245,7]
[424994456,1781388649000,-610.47990842,0.00029245,7]
[424994432,1781388649000,-206.43,0.00029,2]
[424994434,1781388649000,-500.0,0.00029,2]
[424994435,1781388649000,-5230.85219777,0.00029,2]
[424994436,1781388649000,-316.0,0.00029,2]
[424994438,1781388649000,-2500.0,0.00029,2]
[424994437,1781388649000,-309.0,0.00029,2]
[424994439,1781388649000,-152.0,0.00029017,30]
[424994441,1781388649000,-153.0,0.00029017,30]
[424994442,1781388649000,-153.0,0.00029017,30]
[424994440,1781388649000,-152.0,0.00029017,30]
[424994443,1781388649000,-156.0,0.00029017,30]
[424994444,1781388649000,-155.0,0.00029017,30]
[424994431,1781388649000,-19823.99,0.00029,5]
[424994486,1781388649000,-1050.53,0.00029999,120]
[424994458,1781388649000,-217.95581361,0.00029288,2]
[424994453,1781388649000,-544.88234835,0.00029245,7]
[424994454,1781388649000,-475.55783085,0.00029245,7]
[424994447,1781388649000,-157.0,0.00029017,30]
[424994452,1781388649000,-455.51482356,0.00029245,7]
[424994455,1781388649000,-475.93875926,0.00029245,2]
[424994451,1781388649000,-6593.87267788,0.000291,2]
[424994448,1781388649000,-151.0,0.00029017,30]
[424994449,1781388649000,-161.0,0.00029017,30]
[424994446,1781388649000,-179.0,0.00029017,30]
[424994445,1781388649000,-160.0,0.00029017,30]
[424994450,1781388649000,-293.11,0.00029062,2]
[424994528,1781388650000,-4134.53,0.0003,2]
[424994524,1781388650000,-2500.0,0.0003,2]
[424994522,1781388650000,-2499.98,0.0003,2]
[424994519,1781388650000,-3040.78,0.0003,2]
[424994514,1781388650000,-15042.49572291,0.0003,7]
[424994520,1781388650000,-2500.0,0.0003,2]
[424994518,1781388650000,-22500.0,0.0003,2]
[424994517,1781388650000,-12500.0,0.0003,2]
[424994516,1781388650000,-25000.0,0.0003,2]
[424994525,1781388650000,-25000.0,0.0003,2]
[424994521,1781388650000,-10000.0,0.0003,2]
[424994523,1781388650000,-22500.0,0.0003,2]
[424994515,1781388650000,-3865.63,0.0003,2]
[424994526,1781388650000,-208.61,0.0003,2]
[424994530,1781388650000,-12500.0,0.0003,2]
[424994529,1781388650000,-12500.0,0.0003,2]
[424994533,1781388650000,-25000.0,0.0003,2]
[424994532,1781388650000,-2500.0,0.0003,2]
[424994536,1781388650000,-2500.0,0.0003,2]
[424994538,1781388650000,-22500.0,0.0003,2]
[424994534,1781388650000,-2082.79,0.0003,2]
[424994531,1781388650000,-9999.97,0.0003,2]
[424994535,1781388650000,-22500.0,0.0003,2]
[424994537,1781388650000,-15000.0,0.0003,2]
[424994527,1781388650000,-17413.86,0.0003,2]
[424994539,1781388650000,-200.0,0.0003,2]
[424994487,1781388650000,-1050.53,0.00029999,120]
[424994513,1781388650000,-166.30035688,0.0003,2]
[424994541,1781388650000,-20000.0,0.0003,2]
[424994488,1781388650000,-1050.53,0.00029999,120]
[424994489,1781388650000,-241760.38791434,0.0003,6]
[424994493,1781388650000,-347.83,0.0003,11]
[424994490,1781388650000,-200.0,0.0003,11]
[424994491,1781388650000,-200.0,0.0003,11]
[424994492,1781388650000,-200.0,0.0003,11]
[424994495,1781388650000,-254.29847873,0.0003,7]
[424994494,1781388650000,-1000.0,0.0003,120]
[424994497,1781388650000,-5795.72613106,0.0003,3]
[424994496,1781388650000,-1000.0,0.0003,2]
[424994498,1781388650000,-22096.6321946,0.0003,7]
[424994499,1781388650000,-22096.6321946,0.0003,7]
[424994504,1781388650000,-3856.65720755,0.0003,3]
[424994502,1781388650000,-12500.0,0.0003,2]
[424994500,1781388650000,-2045.11,0.0003,2]
[424994503,1781388650000,-22500.0,0.0003,2]
[424994501,1781388650000,-16318.55,0.0003,2]
[424994506,1781388650000,-20283.51476904,0.0003,2]
[424994505,1781388650000,-170.02039509,0.0003,120]
[424994508,1781388650000,-1126.60237562,0.0003,2]
[424994507,1781388650000,-2000.0,0.0003,3]
[424994510,1781388650000,-2763.94182595,0.0003,2]
[424994511,1781388650000,-1000.0,0.0003,2]
[424994509,1781388650000,-1854.96988856,0.0003,2]
[424994512,1781388650000,-1030.02937093,0.0003,120]
[424994540,1781388650000,-200.0,0.0003,10]
[424994572,1781388650000,-202.576104,0.0003,7]
[424994551,1781388650000,-170.364361,0.0003,7]
[424994573,1781388650000,-202.576104,0.0003,7]
[424994574,1781388650000,-699.821432,0.0003,2]
[424994575,1781388650000,-202.576104,0.0003,7]
[424994577,1781388650000,-202.576104,0.0003,7]
[424994576,1781388650000,-202.576104,0.0003,7]
[424994583,1781388650000,-152.0,0.00030017,30]
[424994582,1781388650000,-2231.68521546,0.00030007,2]
[424994578,1781388650000,-350.0,0.0003,30]
[424994579,1781388650000,-3000.0,0.0003,3]
[424994580,1781388650000,-500.0,0.0003,60]
[424994581,1781388650000,-200.0,0.0003,2]
[424994569,1781388650000,-202.576104,0.0003,7]
[424994584,1781388650000,-152.0,0.00030017,30]
[424994587,1781388650000,-156.0,0.00030017,30]
[424994593,1781388650000,-161.0,0.00030017,30]
[424994588,1781388650000,-155.0,0.00030017,30]
[424994591,1781388650000,-157.0,0.00030017,30]
[424994590,1781388650000,-179.0,0.00030017,30]
[424994594,1781388650000,-316.8038747,0.00030019,4]
[424994592,1781388650000,-151.0,0.00030017,30]
[424994589,1781388650000,-160.0,0.00030017,30]
[424994595,1781388650000,-3794.56864203,0.00030027,2]
[424994596,1781388650000,-2231.68521546,0.00030027,2]
[424994597,1781388650000,-201.74593134,0.0003003,5]
[424994585,1781388650000,-153.0,0.00030017,30]
[424994568,1781388650000,-202.576104,0.0003,7]
[424994586,1781388650000,-153.0,0.00030017,30]
[424994571,1781388650000,-202.576104,0.0003,7]
[424994570,1781388650000,-202.576104,0.0003,7]
[424994542,1781388650000,-170.364361,0.0003,7]
[424994544,1781388650000,-170.364361,0.0003,7]
[424994546,1781388650000,-170.364361,0.0003,7]
[424994547,1781388650000,-170.364361,0.0003,7]
[424994545,1781388650000,-170.364361,0.0003,7]
[424994548,1781388650000,-170.364361,0.0003,7]
[424994549,1781388650000,-170.364361,0.0003,7]
[424994550,1781388650000,-170.364361,0.0003,7]
[424994552,1781388650000,-170.364361,0.0003,7]
[424994553,1781388650000,-170.364361,0.0003,7]
[424994554,1781388650000,-200.0,0.0003,2]
[424994555,1781388650000,-633.08653325,0.0003,2]
[424994543,1781388650000,-170.364361,0.0003,7]
[424994559,1781388650000,-2500.0,0.0003,2]
[424994567,1781388650000,-202.576104,0.0003,7]
[424994566,1781388650000,-202.576104,0.0003,7]
[424994563,1781388650000,-3141.30302254,0.0003,7]
[424994564,1781388650000,-200.0,0.0003,2]
[424994557,1781388650000,-454.87,0.0003,2]
[424994565,1781388650000,-202.576104,0.0003,7]
[424994562,1781388650000,-3141.30302254,0.0003,7]
[424994561,1781388650000,-25000.0,0.0003,2]
[424994560,1781388650000,-4821.85,0.0003,2]
[424994556,1781388650000,-22499.99,0.0003,2]
[424994558,1781388650000,-12499.98,0.0003,2]
[424994613,1781388651000,-300.0,0.00030124,10]
[424994610,1781388651000,-157.56,0.0003012,2]
[424994618,1781388651000,-22500.0,0.00030125,2]
[424994617,1781388651000,-12500.0,0.00030125,2]
[424994620,1781388651000,-12500.0,0.00030125,2]
[424994619,1781388651000,-22500.0,0.00030125,2]
[424994629,1781388651000,-202.576104,0.00030125,7]
[424994621,1781388651000,-22500.0,0.00030125,2]
[424994624,1781388651000,-170.364361,0.00030125,7]
[424994611,1781388651000,-157.56,0.0003012,2]
[424994625,1781388651000,-170.364361,0.00030125,7]
[424994628,1781388651000,-202.576104,0.00030125,7]
[424994616,1781388651000,-22500.0,0.00030125,2]
[424994606,1781388651000,-370.54339196,0.0003008,5]
[424994614,1781388651000,-1050.53,0.00030124,120]
[424994612,1781388651000,-200.78997789,0.0003012,2]
[424994608,1781388651000,-300.0,0.000301,10]
[424994609,1781388651000,-295.0,0.000301,120]
[424994623,1781388651000,-22500.0,0.00030125,2]
[424994607,1781388651000,-3235.27,0.000301,2]
[424994603,1781388651000,-160.0,0.00030039,3]
[424994605,1781388651000,-263.97791433,0.0003008,2]
[424994602,1781388651000,-516.06,0.00030034,10]
[424994604,1781388651000,-233.65365171,0.0003008,2]
[424994600,1781388651000,-208.27277261,0.0003003,2]
[424994601,1781388651000,-217.95581361,0.0003003,2]
[424994599,1781388651000,-206.2902924,0.0003003,2]
[424994615,1781388651000,-12500.0,0.00030125,2]
[424994598,1781388651000,-1226.3188335,0.0003003,2]
[424994622,1781388651000,-12500.0,0.00030125,2]
[424994626,1781388651000,-170.364361,0.00030125,7]
[424994656,1781388651000,-3594861.94565339,0.0003013,7]
[424994655,1781388651000,-155142.94760674,0.0003013,2]
[424994652,1781388651000,-1050.53,0.00030129,120]
[424994654,1781388651000,-839.06718577,0.00030129,2]
[424994653,1781388651000,-1050.66306057,0.00030129,120]
[424994650,1781388651000,-1050.53,0.00030129,120]
[424994651,1781388651000,-1050.53,0.00030129,120]
[424994647,1781388651000,-1050.53,0.00030129,120]
[424994649,1781388651000,-1050.53,0.00030129,120]
[424994646,1781388651000,-1050.53,0.00030129,120]
[424994648,1781388651000,-1050.53,0.00030129,120]
[424994645,1781388651000,-1050.53,0.00030129,120]
[424994643,1781388651000,-1050.53,0.00030129,120]
[424994644,1781388651000,-1050.53,0.00030129,120]
[424994641,1781388651000,-1050.53,0.00030129,120]
[424994642,1781388651000,-1050.53,0.00030129,120]
[424994640,1781388651000,-1050.53,0.00030129,120]
[424994639,1781388651000,-1050.53,0.00030129,120]
[424994635,1781388651000,-1050.53,0.00030129,120]
[424994637,1781388651000,-1050.53,0.00030129,120]
[424994638,1781388651000,-1050.53,0.00030129,120]
[424994636,1781388651000,-1050.53,0.00030129,120]
[424994634,1781388651000,-1050.53,0.00030129,120]
[424994632,1781388651000,-300.0,0.00030129,10]
[424994633,1781388651000,-150.0,0.00030129,20]
[424994631,1781388651000,-202.576104,0.00030125,7]
[424994630,1781388651000,-202.576104,0.00030125,7]
[424994627,1781388651000,-170.364361,0.00030125,7]
[424994660,1781389320000,-402.07921076,0.00015404,2]
[424994661,1781389375000,-628.46780824,0.00015406,2]
[424994662,1781389634000,-150.0,0.00014943,2]
[424994663,1781389634000,-430.85719456,0.00015304,2]
[424994666,1781389638000,-181.83462181,0.00015406,2]
[424994665,1781389638000,-88.36960761,0.00015406,2]
[424994664,1781389638000,-69.14280544,0.00015304,2]
[424994669,1781389643000,-216.08423125,0.00016201,2]